fUSD/lending_fUSD_20250107
["ID","MTS","AMOUNT","RATE_DAILY","PERIOD"]
[348066151,1736291440448,-500.0,9.276e-05,2]
[348066152,1736291440458,-975.45,9.276e-05,2]
[348066153,1736291440468,-500.0,9.276e-05,2]
[348066154,1736291440478,-377.87074238,9.276e-05,2]
[348066155,1736291440970,-122.12925762,9.276e-05,2]
[348066156,1736291440980,-500.0,9.276e-05,2]
[348066157,1736291440990,-500.0,9.276e-05,2]
[348066158,1736291441000,-500.0,9.276e-05,2]
[348066159,1736291441009,-500.0,9.276e-05,2]
[348066160,1736291441019,-946.25,9.276e-05,2]
[348066161,1736291441028,-500.0,9.276e-05,2]
[348066162,1736291441038,-500.0,9.276e-05,2]
[348066163,1736291441047,-782.46,9.276e-05,2]
[348066164,1736291441056,-500.0,9.276e-05,2]
[348066165,1736291441065,-500.0,9.276e-05,2]
[348066166,1736291441075,-909.84,9.276e-05,2]
[348066167,1736291441084,-500.0,9.276e-05,2]
[348066168,1736291441094,-500.0,9.276e-05,2]
[348066169,1736291441104,-500.0,9.276e-05,2]
[348066170,1736291441114,-500.0,9.276e-05,2]
[348066171,1736291441123,-500.0,9.276e-05,2]
[348066172,1736291441133,-500.0,9.276e-05,2]
[348066173,1736291441142,-500.0,9.276e-05,2]
[348066174,1736291441152,-500.0,9.276e-05,2]
[348066175,1736291441161,-500.0,9.276e-05,2]
[348066176,1736291441171,-619.74,9.276e-05,2]
[348066177,1736291441180,-500.0,9.276e-05,2]
[348066178,1736291441190,-500.0,9.276e-05,2]
[348066179,1736291441200,-500.0,9.276e-05,2]
[348066180,1736291441209,-500.0,9.276e-05,2]
[348066181,1736291441220,-500.0,9.276e-05,2]
[348066182,1736291441230,-500.0,9.276e-05,2]
[348066183,1736291441239,-500.0,9.276e-05,2]
[348066184,1736291441249,-1231.92,9.276e-05,2]
[348066185,1736291441258,-500.0,9.276e-05,2]
[348066186,1736291441268,-500.0,9.276e-05,2]
[348066187,1736291441277,-500.0,9.276e-05,2]
[348066188,1736291441287,-500.0,9.276e-05,2]
[348066189,1736291441296,-500.0,9.276e-05,2]
[348066190,1736291441306,-500.0,9.276e-05,2]
[348066191,1736291441315,-500.0,9.276e-05,2]
[348066192,1736291441324,-500.0,9.276e-05,2]
[348066193,1736291441333,-500.0,9.276e-05,2]
[348066194,1736291441343,-500.0,9.276e-05,2]
[348066195,1736291441352,-500.0,9.276e-05,2]
[348066196,1736291441362,-500.0,9.276e-05,2]
[348066197,1736291441372,-500.0,9.276e-05,2]
[348066198,1736291441382,-500.0,9.276e-05,2]
[348066199,1736291441392,-500.0,9.276e-05,2]
[348066200,1736291441402,-500.0,9.276e-05,2]
[348066201,1736291441611,-500.0,9.276e-05,2]
[348066202,1736291441621,-192.68880217,9.276e-05,2]
[348066203,1736291441631,-219.31468623,9.276e-05,2]
[348066204,1736291441641,-72.97410347,9.276e-05,2]
[348066205,1736291441664,-427.02589653,9.276e-05,2]
[348066206,1736291441673,-500.0,9.276e-05,2]
[348066207,1736291441683,-548.86,9.276e-05,2]
[348066208,1736291441692,-500.0,9.276e-05,2]
[348066209,1736291441702,-675.0,9.276e-05,2]
[348066210,1736291441715,-500.0,9.276e-05,2]
[348066211,1736291441725,-500.0,9.276e-05,2]
[348066212,1736291441734,-500.0,9.276e-05,2]
[348066213,1736291441742,-500.0,9.276e-05,2]
[348066214,1736291441752,-500.0,9.276e-05,2]
[348066215,1736291441762,-500.0,9.276e-05,2]
[348066216,1736291441771,-500.0,9.276e-05,2]
[348066217,1736291441781,-500.0,9.276e-05,2]
[348066218,1736291441791,-500.0,9.276e-05,2]
[348066219,1736291441801,-500.0,9.276e-05,2]
[348066220,1736291441815,-500.0,9.276e-05,2]
[348066221,1736291441825,-501.18787739,9.276e-05,2]
[348066222,1736291441835,-500.0,9.276e-05,2]
[348066223,1736291441844,-500.0,9.276e-05,2]
[348066224,1736291441853,-500.0,9.276e-05,2]
[348066225,1736291441862,-500.0,9.276e-05,2]
[348066226,1736291441872,-500.0,9.276e-05,2]
[348066227,1736291441881,-700.15,9.276e-05,2]
[348066228,1736291441890,-500.0,9.276e-05,2]
[348066229,1736291441899,-500.0,9.276e-05,2]
[348066230,1736291441908,-508.15294704,9.276e-05,2]
[348066231,1736291441917,-500.0,9.276e-05,2]
[348066232,1736291441926,-500.0,9.276e-05,2]
[348066233,1736291441941,-575.55,9.276e-05,2]
[348066234,1736291441950,-500.0,9.276e-05,2]
[348066235,1736291441959,-500.0,9.276e-05,2]
[348066236,1736291441968,-500.0,9.276e-05,2]
[348066237,1736291441979,-500.0,9.276e-05,2]
[348066238,1736291441988,-500.0,9.276e-05,2]
[348066239,1736291441997,-500.0,9.276e-05,2]
[348066240,1736291442006,-500.0,9.276e-05,2]
[348066241,1736291442015,-500.0,9.276e-05,2]
[348066242,1736291442024,-339.54381058,9.276e-05,2]
[348066243,1736291442035,-160.45618942,9.276e-05,2]
[348066244,1736291442044,-500.0,9.276e-05,2]
[348066245,1736291442054,-516.78,9.276e-05,2]
[348066246,1736291442063,-500.0,9.276e-05,2]
[348066247,1736291442073,-500.0,9.276e-05,2]
[348066248,1736291442082,-500.0,9.276e-05,2]
[348066249,1736291442091,-500.0,9.277e-05,2]
[348066250,1736291442100,-1247.08,9.277e-05,2]
[348066251,1736291442109,-936.9,9.277e-05,2]
[348066252,1736291442118,-1586.21,9.277e-05,2]
[348066253,1736291442129,-1596.61,9.277e-05,2]
[348066254,1736291442138,-1924.76381058,9.277e-05,2]
[348066255,1736291442150,-625.28618942,9.277e-05,2]
[348066256,1736291442159,-1352.54,9.277e-05,2]
[348066257,1736291442167,-119.90327904,9.277e-05,2]
[348066258,1736291442179,-541.1196145,9.277e-05,2]
[348066259,1736291442190,-3305.21696341,9.277e-05,2]
[348066260,1736291442213,-80.76014305,9.277e-05,2]
[348066261,1736291442223,-1860.62,9.277e-05,2]
[348066262,1736291442232,-1148.44,9.277e-05,2]
[348066263,1736291442242,-2847.45,9.277e-05,2]
[348066264,1736291442251,-1189.47,9.277e-05,2]
[348066265,1736291442260,-1663.09,9.277e-05,2]
[348066266,1736291442269,-537.26,9.277e-05,2]
[348066267,1736291442278,-1713.19,9.277e-05,2]
[348066268,1736291442287,-500.0,9.277e-05,2]
[348066269,1736291442296,-1363.97,9.277e-05,2]
[348066270,1736291442306,-918.71,9.277e-05,2]
[348066271,1736291442315,-805.69,9.277e-05,2]
[348066272,1736291442325,-2911.16,9.277e-05,2]
[348066273,1736291442334,-880.85,9.277e-05,2]
[348066274,1736291442344,-1548.59,9.277e-05,2]
[348066275,1736291442353,-6444.07,9.278e-05,2]
[348066276,1736291442363,-852.98,9.278e-05,2]
[348066277,1736291442372,-1697.6,9.278e-05,2]
[348066278,1736291442382,-809.6,9.278e-05,2]
[348066279,1736291442391,-3197.28,9.278e-05,2]
[348066280,1736291442400,-1321.27,9.278e-05,2]
[348066281,1736291442410,-569.31,9.411e-05,2]
[348066282,1736291442419,-500.0,9.411e-05,2]
[348066283,1736291442429,-510.51,9.411e-05,2]
[348066284,1736291442438,-500.0,9.411e-05,2]
[348066285,1736291442447,-567.8,9.411e-05,2]
[348066286,1736291442456,-500.0,9.411e-05,2]
[348066287,1736291442467,-500.0,9.411e-05,2]
[348066288,1736291442476,-500.0,9.411e-05,2]
[348066289,1736291442485,-500.0,9.411e-05,2]
[348066290,1736291442494,-543.28,9.411e-05,2]
[348066291,1736291442504,-694.1,9.411e-05,2]
[348066292,1736291442513,-500.0,9.411e-05,2]
[348066293,1736291442522,-500.0,9.411e-05,2]
[348066294,1736291442531,-500.0,9.411e-05,2]
[348066295,1736291442540,-500.0,9.411e-05,2]
[348066296,1736291442550,-710.54,9.411e-05,2]
[348066297,1736291442559,-500.0,9.411e-05,2]
[348066298,1736291442569,-500.0,9.411e-05,2]
[348066299,1736291442578,-555.85944571,9.411e-05,2]
[348066300,1736291442588,-500.0,9.411e-05,2]
[348066301,1736291442599,-507.5,9.411e-05,2]
[348066302,1736291442608,-1118.63,9.411e-05,2]
[348066303,1736291442617,-500.0,9.411e-05,2]
[348066304,1736291442627,-1268.47,9.411e-05,2]
[348066305,1736291442636,-500.0,9.411e-05,2]
[348066306,1736291442645,-572.65,9.411e-05,2]
[348066307,1736291442655,-500.0,9.411e-05,2]
[348066308,1736291442664,-1163.36,9.411e-05,2]
[348066309,1736291442674,-500.0,9.411e-05,2]
[348066310,1736291442683,-574.87,9.411e-05,2]
[348066311,1736291442693,-500.0,9.411e-05,2]
[348066312,1736291442702,-500.0,9.411e-05,2]
[348066313,1736291442716,-500.0,9.411e-05,2]
[348066314,1736291442726,-511.89,9.411e-05,2]
[348066315,1736291442735,-580.04,9.411e-05,2]
[348066316,1736291442744,-500.0,9.411e-05,2]
[348066317,1736291442755,-524.23,9.411e-05,2]
[348066318,1736291442764,-500.0,9.411e-05,2]
[348066319,1736291442774,-500.0,9.411e-05,2]
[348066320,1736291442783,-500.0,9.411e-05,2]
[348066321,1736291442794,-500.0,9.411e-05,2]
[348066322,1736291442803,-500.0,9.411e-05,2]
[348066323,1736291442812,-500.0,9.411e-05,2]
[348066324,1736291442821,-524.11,9.411e-05,2]
[348066325,1736291442830,-500.0,9.411e-05,2]
[348066326,1736291442840,-500.0,9.411e-05,2]
[348066327,1736291442850,-500.0,9.411e-05,2]
[348066328,1736291442859,-500.0,9.411e-05,2]
[348066329,1736291442869,-1382.11,9.411e-05,2]
[348066330,1736291442879,-1141.93,9.411e-05,2]
[348066331,1736291442888,-500.0,9.411e-05,2]
[348066332,1736291442898,-500.0,9.411e-05,2]
[348066333,1736291442907,-536.6,9.411e-05,2]
[348066334,1736291442917,-1308.22,9.411e-05,2]
[348066335,1736291442926,-500.0,9.411e-05,2]
[348066336,1736291442937,-500.0,9.411e-05,2]
[348066337,1736291442946,-514.07,9.411e-05,2]
[348066338,1736291442956,-500.0,9.411e-05,2]
[348066339,1736291442965,-793.68,9.411e-05,2]
[348066340,1736291442974,-1547.92,9.411e-05,2]
[348066341,1736291442983,-1221.54,9.411e-05,2]
[348066342,1736291442993,-823.49,9.411e-05,2]
[348066343,1736291443002,-1090.91,9.411e-05,2]
[348066344,1736291443012,-500.0,9.411e-05,2]
[348066345,1736291443021,-500.0,9.411e-05,2]
[348066346,1736291443031,-500.0,9.411e-05,2]
[348066347,1736291443040,-500.0,9.411e-05,2]
[348066348,1736291443049,-500.0,9.411e-05,2]
[348066349,1736291443058,-2519.14,9.411e-05,2]
[348066350,1736291443067,-500.0,9.411e-05,2]
[348066351,1736291443077,-597.0,9.411e-05,2]
[348066352,1736291443086,-1767.45,9.411e-05,2]
[348066353,1736291443095,-500.0,9.411e-05,2]
[348066354,1736291443104,-4160.59,9.411e-05,2]
[348066355,1736291443113,-500.0,9.411e-05,2]
[348066356,1736291443123,-500.0,9.411e-05,2]
[348066357,1736291443132,-731.71,9.411e-05,2]
[348066358,1736291443141,-500.0,9.411e-05,2]
[348066359,1736291443151,-2854.86,9.411e-05,2]
[348066360,1736291443160,-500.0,9.411e-05,2]
[348066361,1736291443169,-504.88,9.411e-05,2]
[348066362,1736291443179,-500.0,9.411e-05,2]
[348066363,1736291443188,-334.11,9.411e-05,2]
[348066364,1736291443197,-820.69,9.411e-05,2]
[348066365,1736291443206,-500.0,9.411e-05,2]
[348066366,1736291443215,-500.0,9.411e-05,2]
[348066367,1736291443225,-639.8,9.411e-05,2]
[348066368,1736291443234,-1437.07,9.411e-05,2]
[348066369,1736291443244,-3515.53,9.411e-05,2]
[348066372,1736291443253,-551.91,9.411e-05,2]
[348066374,1736291443262,-892.28,9.411e-05,2]
[348066375,1736291443271,-167.05,9.412e-05,2]
[348066376,1736291443281,-978.24,9.453e-05,2]
[348066377,1736291443291,-2318.63,9.453e-05,2]
[348066378,1736291443300,-6139.08,9.453e-05,2]
[348066379,1736291443309,-753.11,9.453e-05,2]
[348066380,1736291443319,-1464.41,9.453e-05,2]
[348066381,1736291443328,-889.09,9.453e-05,2]
[348066382,1736291443337,-2229.73,9.453e-05,2]
[348066383,1736291443347,-500.0,9.453e-05,2]
[348066384,1736291443355,-1778.53,9.453e-05,2]
[348066385,1736291443364,-500.0,9.453e-05,2]
[348066386,1736291443374,-3692.29,9.453e-05,2]
[348066387,1736291443383,-4019.55,9.453e-05,2]
[348066388,1736291443392,-1730.14,9.453e-05,2]
[348066389,1736291443401,-685.88,9.453e-05,2]
[348066390,1736291443410,-500.0,9.453e-05,2]
[348066391,1736291443420,-917.57,9.453e-05,2]
[348066392,1736291443430,-1045.55,9.453e-05,2]
[348066393,1736291443440,-2665.93,9.453e-05,2]
[348066394,1736291443449,-2191.07,9.453e-05,2]
[348066395,1736291443459,-500.0,9.453e-05,2]
[348066396,1736291443468,-1716.18,9.453e-05,2]
[348066397,1736291443478,-902.13,9.453e-05,2]
[348066398,1736291443489,-500.0,9.453e-05,2]
[348066399,1736291443500,-1608.14,9.453e-05,2]
[348066400,1736291443509,-500.0,9.453e-05,2]
[348066401,1736291443521,-846.29,9.453e-05,2]
[348066402,1736291443530,-650.88,9.453e-05,2]
[348066403,1736291443539,-1294.77,9.453e-05,2]
[348066404,1736291443548,-2687.7,9.453e-05,2]
[348066405,1736291443558,-500.0,9.453e-05,2]
[348066406,1736291443567,-500.0,9.454e-05,2]
[348066407,1736291443575,-500.0,9.454e-05,2]
[348066408,1736291443583,-500.0,9.454e-05,2]
[348066409,1736291443592,-500.0,9.454e-05,2]
[348066410,1736291443601,-500.0,9.454e-05,2]
[348066411,1736291443609,-500.0,9.454e-05,2]
[348066412,1736291443618,-500.0,9.454e-05,2]
[348066413,1736291443627,-500.0,9.454e-05,2]
[348066414,1736291443636,-500.0,9.454e-05,2]
[348066415,1736291443647,-500.0,9.454e-05,2]
[348066416,1736291443658,-500.0,9.454e-05,2]
[348066417,1736291443667,-500.0,9.454e-05,2]
[348066418,1736291443676,-500.0,9.454e-05,2]
[348066419,1736291443686,-500.0,9.454e-05,2]
[348066420,1736291443695,-500.0,9.454e-05,2]
[348066421,1736291443705,-500.0,9.454e-05,2]
[348066422,1736291443716,-500.0,9.454e-05,2]
[348066423,1736291443726,-500.0,9.454e-05,2]
[348066424,1736291443735,-500.0,9.454e-05,2]
[348066425,1736291443744,-500.0,9.454e-05,2]
[348066426,1736291443754,-500.0,9.454e-05,2]
[348066427,1736291443764,-633.84,9.454e-05,2]
[348066428,1736291443773,-500.0,9.454e-05,2]
[348066429,1736291443784,-500.0,9.454e-05,2]
[348066430,1736291443793,-500.0,9.454e-05,2]
[348066431,1736291443802,-500.0,9.454e-05,2]
[348066432,1736291443811,-500.0,9.454e-05,2]
[348066433,1736291443820,-500.0,9.454e-05,2]
[348066434,1736291443829,-569.06601652,9.454e-05,2]
[348066435,1736291443838,-500.0,9.454e-05,2]
[348066436,1736291443847,-500.0,9.454e-05,2]
[348066437,1736291443856,-500.0,9.454e-05,2]
[348066438,1736291443866,-500.0,9.454e-05,2]
[348066439,1736291443875,-500.0,9.454e-05,2]
[348066440,1736291443884,-500.0,9.454e-05,2]
[348066441,1736291443893,-602.74257638,9.454e-05,2]
[348066442,1736291443902,-500.0,9.454e-05,2]
[348066443,1736291443911,-500.0,9.454e-05,2]
[348066444,1736291443920,-528.68,9.454e-05,2]
[348066445,1736291443930,-500.0,9.454e-05,2]
[348066446,1736291443939,-500.0,9.454e-05,2]
[348066447,1736291443948,-500.0,9.454e-05,2]
[348066448,1736291443957,-161.74122768,9.454e-05,2]
[348066449,1736291443966,-194.71413545,9.454e-05,2]
[348066450,1736291443975,-494.0,9.454e-05,2]
[348066451,1736291443984,-500.0,9.454e-05,2]
[348066452,1736291443994,-546.02,9.454e-05,2]
[348066453,1736291444003,-500.0,9.454e-05,2]
[348066454,1736291444012,-500.0,9.454e-05,2]
[348066455,1736291444021,-500.0,9.454e-05,2]
[348066456,1736291444030,-1023.02,9.454e-05,2]
[348066457,1736291444040,-273.55,9.454e-05,2]
[348066458,1736291444050,-500.0,9.454e-05,2]
[348066459,1736291444059,-500.0,9.454e-05,2]
[348066460,1736291444069,-500.0,9.454e-05,2]
[348066461,1736291444078,-500.0,9.454e-05,2]
[348066462,1736291444088,-500.0,9.454e-05,2]
[348066463,1736291444097,-849.18,9.454e-05,2]
[348066464,1736291444106,-500.0,9.454e-05,2]
[348066465,1736291444115,-500.0,9.454e-05,2]
[348066466,1736291444124,-500.0,9.454e-05,2]
[348066467,1736291444133,-150.0,9.454e-05,2]
[348066468,1736291444142,-500.0,9.454e-05,2]
[348066469,1736291444152,-500.0,9.454e-05,2]
[348066470,1736291444161,-500.0,9.454e-05,2]
[348066472,1736291444169,-500.0,9.454e-05,2]
[348066474,1736291444178,-924.65,9.454e-05,2]
[348066475,1736291444188,-647.02,9.454e-05,2]
[348066476,1736291444197,-500.0,9.454e-05,2]
[348066477,1736291444207,-500.0,9.454e-05,2]
[348066478,1736291444216,-500.0,9.454e-05,2]
[348066479,1736291444226,-1427.48,9.454e-05,2]
[348066480,1736291444235,-500.0,9.454e-05,2]
[348066481,1736291444244,-500.0,9.454e-05,2]
[348066482,1736291444254,-500.0,9.454e-05,2]
[348066483,1736291444263,-500.0,9.454e-05,2]
[348066484,1736291444272,-500.0,9.454e-05,2]
[348066485,1736291444281,-1131.21,9.454e-05,2]
[348066486,1736291444291,-500.0,9.454e-05,2]
[348066487,1736291444300,-500.0,9.454e-05,2]
[348066488,1736291444309,-500.0,9.454e-05,2]
[348066489,1736291444319,-866.89,9.454e-05,2]
[348066490,1736291444328,-500.0,9.454e-05,2]
[348066491,1736291444338,-500.0,9.454e-05,2]
[348066492,1736291444347,-1661.97,9.454e-05,2]
[348066493,1736291444356,-2846.17,9.454e-05,2]
[348066494,1736291444366,-1888.09,9.454e-05,2]
[348066495,1736291444375,-1089.7577,9.454e-05,2]
[348066496,1736291444384,-1191.56,9.454e-05,2]
[348066497,1736291444394,-1227.36397,9.454e-05,2]
[348066498,1736291444403,-4247.97,9.454e-05,2]
[348066499,1736291444413,-954.23,9.454e-05,2]
[348066500,1736291444422,-731.42,9.454e-05,2]
[348066501,1736291444433,-923.74,9.454e-05,2]
[348066502,1736291444442,-500.0,9.454e-05,2]
[348066503,1736291444451,-3083.25,9.454e-05,2]
[348066504,1736291444461,-542.69,9.455e-05,2]
[348066505,1736291444470,-500.0,9.455e-05,2]
[348066506,1736291444479,-577.26,9.455e-05,2]
[348066507,1736291444488,-500.0,9.455e-05,2]
[348066508,1736291444498,-991.32,9.455e-05,2]
[348066509,1736291444507,-643.05,9.455e-05,2]
[348066510,1736291444516,-1022.92,9.455e-05,2]
[348066511,1736291444526,-500.0,9.455e-05,2]
[348066512,1736291444535,-1108.91,9.455e-05,2]
[348066513,1736291444545,-500.0,9.455e-05,2]
[348066514,1736291444554,-500.0,9.455e-05,2]
[348066515,1736291444564,-500.0,9.455e-05,2]
[348066516,1736291444573,-781.52,9.455e-05,2]
[348066517,1736291444582,-500.0,9.455e-05,2]
[348066518,1736291444593,-500.0,9.455e-05,2]
[348066519,1736291444603,-500.0,9.455e-05,2]
[348066520,1736291444613,-182.89,9.478e-05,2]
[348066521,1736291444623,-643.72,9.478e-05,2]
[348066522,1736291444632,-848.2,9.478e-05,2]
[348066523,1736291444641,-979.19,9.478e-05,2]
[348066524,1736291444650,-182.89,9.478e-05,2]
[348066525,1736291444659,-305.6,9.478e-05,2]
[348066526,1736291444819,-1958.9,9.494e-05,2]
[348066527,1736291444828,-1000.0,9.529e-05,2]
[348066528,1736291444837,-500.0,9.55e-05,2]
[348066529,1736291444847,-500.0,9.55e-05,2]
[348066530,1736291444856,-500.0,9.55e-05,2]
[348066531,1736291444865,-500.0,9.55e-05,2]
[348066532,1736291444874,-657.14,9.55e-05,2]
[348066533,1736291444883,-500.0,9.55e-05,2]
[348066534,1736291444892,-500.0,9.55e-05,2]
[348066535,1736291444901,-500.0,9.55e-05,2]
[348066536,1736291444910,-500.0,9.55e-05,2]
[348066537,1736291444920,-629.41,9.55e-05,2]
[348066538,1736291444929,-522.66,9.55e-05,2]
[348066539,1736291444939,-671.24,9.55e-05,2]
[348066540,1736291444948,-500.0,9.55e-05,2]
[348066541,1736291444957,-500.0,9.55e-05,2]
[348066542,1736291444966,-500.0,9.55e-05,2]
[348066543,1736291444975,-500.0,9.55e-05,2]
[348066544,1736291444984,-500.0,9.55e-05,2]
[348066545,1736291444994,-500.0,9.55e-05,2]
[348066546,1736291445003,-896.81,9.55e-05,2]
[348066547,1736291445012,-651.15,9.55e-05,2]
[348066548,1736291445021,-500.0,9.55e-05,2]
[348066549,1736291445030,-500.0,9.55e-05,2]
[348066550,1736291445039,-849.18,9.55e-05,2]
[348066551,1736291445049,-500.0,9.55e-05,2]
[348066552,1736291445058,-500.0,9.55e-05,2]
[348066553,1736291445067,-500.0,9.55e-05,2]
[348066554,1736291445077,-500.0,9.55e-05,2]
[348066555,1736291445086,-500.0,9.55e-05,2]
[348066556,1736291445095,-500.0,9.55e-05,2]
[348066557,1736291445105,-500.0,9.55e-05,2]
[348066558,1736291445114,-500.0,9.55e-05,2]
[348066559,1736291445123,-500.0,9.55e-05,2]
[348066560,1736291445132,-500.0,9.55e-05,2]
[348066561,1736291445141,-695.89,9.55e-05,2]
[348066562,1736291445152,-500.0,9.55e-05,2]
[348066563,1736291445161,-500.0,9.55e-05,2]
[348066564,1736291445171,-500.0,9.55e-05,2]
[348066565,1736291445180,-644.18,9.55e-05,2]
[348066566,1736291445189,-500.0,9.55e-05,2]
[348066567,1736291445199,-500.0,9.55e-05,2]
[348066568,1736291445208,-500.0,9.55e-05,2]
[348066569,1736291445217,-500.0,9.55e-05,2]
[348066570,1736291445227,-500.0,9.55e-05,2]
[348066571,1736291445236,-500.0,9.55e-05,2]
[348066572,1736291445245,-721.47,9.55e-05,2]
[348066573,1736291445255,-530.45,9.55e-05,2]
[348066574,1736291445264,-500.0,9.55e-05,2]
[348066575,1736291445273,-500.0,9.55e-05,2]
[348066576,1736291445283,-758.29,9.55e-05,2]
[348066577,1736291445292,-500.0,9.55e-05,2]
[348066578,1736291445302,-606.66875636,9.55e-05,2]
[348066579,1736291445311,-500.0,9.55e-05,2]
[348066580,1736291445320,-500.0,9.55e-05,2]
[348066581,1736291445329,-500.0,9.55e-05,2]
[348066582,1736291445338,-500.0,9.55e-05,2]
[348066583,1736291445348,-500.0,9.55e-05,2]
[348066584,1736291445357,-500.0,9.55e-05,2]
[348066585,1736291445367,-500.0,9.55e-05,2]
[348066586,1736291445376,-551.67,9.55e-05,2]
[348066587,1736291445386,-500.0,9.55e-05,2]
[348066588,1736291445396,-864.75,9.55e-05,2]
[348066589,1736291445405,-517.32,9.55e-05,2]
[348066590,1736291445415,-500.0,9.55e-05,2]
[348066591,1736291445424,-500.0,9.55e-05,2]
[348066592,1736291445435,-500.0,9.55e-05,2]
[348066593,1736291445444,-500.0,9.55e-05,2]
[348066594,1736291445454,-500.0,9.55e-05,2]
[348066595,1736291445463,-500.0,9.55e-05,2]
[348066596,1736291445472,-772.29,9.55e-05,2]
[348066597,1736291445481,-500.0,9.55e-05,2]
[348066598,1736291445490,-500.0,9.55e-05,2]
[348066599,1736291445500,-500.0,9.55e-05,2]
[348066600,1736291445509,-500.0,9.55e-05,2]
[348066601,1736291445518,-510.24,9.55e-05,2]
[348066602,1736291445527,-578.9,9.55e-05,2]
[348066603,1736291445537,-500.0,9.55e-05,2]
[348066604,1736291445546,-500.0,9.55e-05,2]
[348066605,1736291445556,-500.0,9.55e-05,2]
[348066606,1736291445565,-625.98,9.55e-05,2]
[348066607,1736291445575,-500.0,9.55e-05,2]
[348066608,1736291445585,-500.0,9.55e-05,2]
[348066609,1736291445595,-500.0,9.55e-05,2]
[348066610,1736291445605,-613.03,9.55e-05,2]
[348066611,1736291445615,-500.0,9.55e-05,2]
[348066612,1736291445624,-500.0,9.55e-05,2]
[348066613,1736291445634,-697.26,9.55e-05,2]
[348066614,1736291445646,-500.0,9.55e-05,2]
[348066615,1736291445657,-500.0,9.55e-05,2]
[348066616,1736291445667,-182.924565,9.55e-05,2]
[348066617,1736291445676,-222.58377241,9.55e-05,2]
[348066618,1736291445686,-500.0,9.55e-05,2]
[348066619,1736291445696,-786.39,9.55e-05,2]
[348066620,1736291445706,-500.0,9.55e-05,2]
[348066621,1736291445717,-509.04,9.55e-05,2]
[348066622,1736291445726,-561.16,9.55e-05,2]
[348066623,1736291445735,-500.0,9.55e-05,2]
[348066624,1736291445745,-791.29,9.55e-05,2]
[348066625,1736291445755,-500.0,9.55e-05,2]
[348066626,1736291445765,-500.0,9.55e-05,2]
[348066627,1736291445774,-500.0,9.55e-05,2]
[348066628,1736291445784,-787.04,9.55e-05,2]
[348066629,1736291445794,-855.67,9.55e-05,2]
[348066630,1736291445803,-500.0,9.55e-05,2]
[348066631,1736291445813,-500.0,9.55e-05,2]
[348066632,1736291445822,-500.0,9.55e-05,2]
[348066633,1736291445832,-500.0,9.55e-05,2]
[348066634,1736291445841,-500.0,9.55e-05,2]
[348066635,1736291445851,-500.0,9.55e-05,2]
[348066636,1736291445860,-500.0,9.55e-05,2]
[348066637,1736291445870,-500.0,9.55e-05,2]
[348066638,1736291445879,-738.04,9.55e-05,2]
[348066639,1736291445888,-500.0,9.55e-05,2]
[348066640,1736291445899,-761.52,9.55e-05,2]
[348066641,1736291445908,-826.52,9.55e-05,2]
[348066642,1736291445917,-798.29,9.55e-05,2]
[348066643,1736291445927,-500.0,9.55e-05,2]
[348066644,1736291445938,-500.0,9.55e-05,2]
[348066645,1736291445948,-500.0,9.55e-05,2]
[348066646,1736291445957,-500.0,9.55e-05,2]
[348066647,1736291445967,-517.69,9.55e-05,2]
[348066648,1736291445977,-846.51,9.55e-05,2]
[348066649,1736291445987,-538.75,9.55e-05,2]
[348066650,1736291445999,-500.0,9.55e-05,2]
[348066651,1736291446009,-1074.72,9.55e-05,2]
[348066652,1736291446018,-516.28,9.55e-05,2]
[348066653,1736291446028,-3561.99,9.55e-05,2]
[348066654,1736291446037,-702.93,9.55e-05,2]
[348066655,1736291446046,-500.0,9.55e-05,2]